Workbook

Sheet Wages_Salaries
B2: N4 Lifeskills - Wages & Salaries Created by Mr.Lafferty@mathsrevision.com
AZ5: =ROUND(RAND()*(9-5)+5,0)*5 -> 40
AZ6: =ROUND(RAND()*(20-8)+8,1) -> 19.3
AZ7: =AZ6*AZ5 -> 772
D8: ="Q1. Chris gets paid an hourly rate of £"&TEXT(AZ6,"0.00")&" as a mechanic." -> Q1. Chris gets paid an hourly rate of £19.30 as a mechanic. | Z8: Weekly | AF8: Monthly | AK8: Annually
E9: =" He works "&AZ5&" hours a week." -> He works 40 hours a week. | Y9: £ | AE9: £ | AJ9: £ | AZ9: =AZ7 -> 772
E10: ="Calculate his weekly, monthly and annual salary." -> Calculate his weekly, monthly and annual salary. | AZ10: =ROUND(AZ11/12,2) -> 3345.33
AZ11: =52*AZ9 -> 40144
BA12: =ROUND(RAND()*(20-7.2)+7.2,1) -> 12.1
D13: ="Q2. Jordan gets paid annual salary of £"&TEXT(BA14,"0.00")&"." -> Q2. Jordan gets paid annual salary of £16988.40. | U13: hourly rate | Y13: £ | AZ13: =BA12 -> 12.1 | BA13: =ROUND(RAND()*(50-25)+25,0) -> 27
E14: ="He works "&BA13&" hours a week. Calculate his hourly rate." -> He works 27 hours a week. Calculate his hourly rate. | BA14: =BA12*BA13*52 -> 16988.4
D17: ="Q3. Lewis is promised an hourly rate of £"&TEXT(BA17,"0.00")&". He gets £"&TEXT(AZ18,"0.00")&" for "&BA19&" hours work. Did he get his promised hourly rate." -> Q3. Lewis is promised an hourly rate of £16.40. He gets £426.40 for 26 hours work. Did he get his promised hourly rate. | AZ17: =IF(BB17=1,"Yes","No") -> No | BA17: =ROUND(RAND()*(18-7.5)+7.5,1) -> 16.4 | BB17: =ROUND(RAND()*(1-0)+0,0) -> 0
AZ18: =BA17*BA19 -> 426.4 | BA18: =IF(BB17=1,BA17,(BA17-0.1)) -> 16.3
AZ19: =BA18*BA19 -> 423.8 | BA19: =ROUND(RAND()*(50-25)+25,0) -> 26
AZ20: =BA20*BA21*52 -> 10296 | BA20: =ROUND(RAND()*(18-8)+8,0) -> 9 | BB20: =ROUND(RAND()*(8-2)+2,0) -> 8
D21: ="Q4. Laura gets a "&BB20&"% increase in her annual salary. Her salary last year was £"&TEXT(AZ20,0)&". What is her new salary." -> Q4. Laura gets a 8% increase in her annual salary. Her salary last year was £10296. What is her new salary. | AM21: £ | AZ21: =ROUND(AZ20+AZ20*BB20/100,2) -> 11119.68 | BA21: =ROUND(RAND()*(40-15)+15,0) -> 22
D24: ="Q5. Andrew gets paid double time if he works the weekend. His normal hourly rate is £"&TEXT(AZ24,"0.00")&". Calculate his weekly wage." -> Q5. Andrew gets paid double time if he works the weekend. His normal hourly rate is £13.70. Calculate his weekly wage. | AZ24: =ROUND(RAND()*(20-6)+6,1) -> 13.7
S25: Hours Worked | AZ25: =ROUND(RAND()*(13-6)+6,0) -> 7
O26: Monday | S26: =AZ25 -> 7 | AZ26: =ROUND(RAND()*(13-6)+6,0) -> 9
O27: Tuesday | S27: =AZ26 -> 9 | AZ27: 11
O28: Wednesday | S28: 11 | AZ28: 10
O29: Thursday | S29: 10 | AZ29: 9
O30: Friday | S30: 9 | AZ30: 6
O31: Saturday | S31: 6 | AZ31: 10
O32: Sunday | S32: 10 | AZ32: =SUM(AZ25:AZ31)+AZ31+AZ30 -> 78
O34: Weekly Salary £ | AZ34: =AZ32*AZ24 -> 1068.6
D37: ="Q6. Derek is paid 'time and half' if he works over 5pm during week days and 'double time' at weekends." -> Q6. Derek is paid 'time and half' if he works over 5pm during week days and 'double time' at weekends.
E38: ="Calculate his weekly wage if his hourly rate is £"&TEXT(AZ38,"0.00")&"." -> Calculate his weekly wage if his hourly rate is £6.60. | AZ38: =ROUND(RAND()*(10-6)+6,1) -> 6.6 | BA38: =1.5*AZ38 -> 9.9
Q39: Days | U39: Before 5pm | Y39: After 5pm | AZ39: =ROUND(RAND()*(8-5)+5,0) -> 7 | BA39: =ROUND(RAND()*(4-0)+0,0) -> 2
Q40: Monday | U40: =AZ39 -> 7 | Y40: =BA39 -> 2 | AZ40: =ROUND(RAND()*(8-5)+5,0) -> 7 | BA40: =ROUND(RAND()*(4-0)+0,0) -> 2
Q41: Tuesday | U41: =AZ40 -> 7 | Y41: =BA40 -> 2 | AZ41: 7 | BA41: =ROUND(RAND()*(4-0)+0,0) -> 3
Q42: Wednesday | U42: 7 | Y42: =BA41 -> 3 | AZ42: 6 | BA42: =ROUND(RAND()*(4-0)+0,0) -> 2
Q43: Thursday | U43: 6 | Y43: =BA42 -> 2 | AZ43: 6 | BA43: =ROUND(RAND()*(4-0)+0,0) -> 4
Q44: Friday | U44: 6 | Y44: =BA43 -> 4 | AZ44: 7
Q45: Saturday | U45: 7 | AZ45: 7
Q46: Sunday | U46: 7 | AG46: Weekly Salary £ | AZ46: =SUM(AZ39:AZ45)+AZ45+AZ44 -> 61
AZ47: =AZ46*AZ38 -> 402.6 | BA47: =SUM(BA39:BA43)*BA38 -> 128.7
AZ48: =AZ47+BA47+BB47 -> 531.3
D50: Q7. Complete the Wage Slip below : | AZ50: =ROUND(RAND()*(1250-592)+592,1) -> 1217.7
AZ51: =ROUND(AZ50*ROUND(RAND()*(0.25-0.2)+0.2,2),2) -> 292.25
H52: Name: Joe Bloggs | AZ52: =ROUND(AZ50*ROUND(RAND()*(0.18-0.1)+0.1,2),2) -> 170.48
AZ53: =ROUND(AZ50*ROUND(RAND()*(0.04-0.02)+0.02,2),2) -> 36.53
H54: Income | K54: Basic | M54: =AZ50 -> 1217.7 | P54: O/T | S54: =AZ52 -> 170.48 | V54: Bonus | Y54: =AZ54 -> 24.35 | AB54: Total | AV54: =AZ50+AZ52+AZ54 -> 1412.53 | AZ54: =ROUND(AZ50*ROUND(RAND()*(0.08-0.02)+0.02,2),2) -> 24.35
H55: Deductions | K55: Tax | M55: =AZ51 -> 292.25 | P55: Nat. Ins. | S55: =AZ53 -> 36.53 | V55: Pension | Y55: =AZ55 -> 60.89 | AB55: Total | AV55: =AZ51+AZ53+AZ55 -> 389.67 | AZ55: =ROUND(AZ50*0.05,2) -> 60.89
AA56: Net PAY | AV56: =AV54-AV55 -> 1022.86
D60: ="Q8. Kerr the car salesperson gets a basic monthly wage of £"&TEXT(AZ60,"0.00")&" + "&AZ61&"% of the total value of the cars he sold." -> Q8. Kerr the car salesperson gets a basic monthly wage of £762.70 + 4% of the total value of the cars he sold. | AZ60: =ROUND(RAND()*(800-500)+500,1) -> 762.7
AZ61: =ROUND(RAND()*(6-2)+2,0) -> 4
E62: ="Calculate his monthly wage if he sold £"&TEXT(AZ62,0)&" worth of cars." -> Calculate his monthly wage if he sold £37100 worth of cars. | AH62: wage £ | AZ62: =ROUND(RAND()*(50000-15000)+15000,-2) -> 37100
AZ63: =AZ60+AZ62*AZ61/100 -> 2246.7
